bitfinex/quotes_ETHUSD_20251226
["timestamp","ask_amount","ask_price","bid_price","bid_amount"]
[1766773752922,0.03523251,2924.6,2923.7,3.42029744]
[1766773752923,4.43165225,2924.3,2922.5,1.02951514]
[1766773753127,4.43165225,2924.1,2923.6,0.972]
[1766773753351,0.03423251,2924.0,2923.6,1.0062044]
[1766773753848,0.9932,2924.1,2923.6,1.0062044]
[1766773754146,0.9932,2924.1,2923.6,7.84706725]
[1766773754353,5.38495225,2924.5,2923.7,0.9389]
[1766773754659,0.03423251,2924.4,2923.9,0.9389]
[1766773755447,0.98753251,2924.4,2923.9,0.9389]
[1766773756554,0.9533,2924.4,2923.9,4.3589658]
[1766773756716,0.001,2924.6,2924.0,0.9389]
[1766773757317,0.9543,2924.6,2924.0,0.9389]
[1766773757515,5.38595225,2924.6,2924.0,0.9389]
[1766773757715,0.03423251,2924.5,2924.0,0.9389]
[1766773759254,0.98753251,2924.5,2924.0,0.9389]
[1766773760444,0.03423251,2924.5,2924.1,0.03419855]
[1766773760762,0.03423251,2924.5,2924.0,0.9389]
[1766773762255,0.98853251,2924.6,2924.0,0.9389]
[1766773764459,0.98853251,2924.6,2923.9,0.03620089]
[1766773764460,4.43165225,2924.4,2923.9,0.002]
[1766773764765,5.38495225,2924.4,2923.9,0.002]
[1766773767576,0.03423251,2924.3,2923.9,0.002]
[1766773768971,0.98753251,2924.3,2923.9,0.002]
[1766773769175,0.9533,2924.3,2923.9,0.002]
[1766773769478,5.38595225,2924.6,2923.9,0.9409]
[1766773769675,0.44326523,2924.5,2923.9,0.9409]
[1766773770283,0.9543,2924.6,2923.9,0.9409]
[1766773770453,0.9543,2924.6,2923.9,0.97510089]
[1766773771282,0.03423251,2924.5,2923.9,0.97510089]
[1766773772566,0.98753251,2924.5,2923.9,0.9409]
[1766773774263,0.98753251,2924.5,2924.0,0.9389]
[1766773774458,0.001,2924.6,2924.0,0.97309972]
[1766773775282,0.03523251,2924.6,2924.0,0.9389]
[1766773776591,0.03523251,2924.6,2924.0,0.9409]
[1766773776798,0.98853251,2924.6,2924.0,0.9409]
[1766773777599,0.9533,2924.5,2924.0,0.9409]
[1766773777774,0.03423251,2924.4,2924.0,0.9409]
[1766773780993,0.98853251,2924.6,2924.0,0.9409]
[1766773781393,0.98853251,2924.6,2924.0,0.002]
[1766773781768,0.9533,2924.5,2924.0,0.002]
[1766773782093,0.03423251,2924.4,2924.0,0.002]
[1766773784803,0.9543,2924.5,2924.0,0.9273]
[1766773784982,0.001,2924.5,2924.0,0.9273]
[1766773785181,0.03523251,2924.5,2924.0,0.9273]
[1766773785789,0.99563251,2924.5,2924.0,0.9273]
[1766773789108,0.03523251,2924.5,2924.0,0.9273]
[1766773791001,0.001,2924.5,2924.0,0.9273]
[1766773791378,0.001,2924.5,2924.1,0.9253]
[1766773791578,0.001,2924.5,2924.1,0.95949855]
[1766773791808,0.001,2924.5,2924.1,0.9253]
[1766773792715,0.9293,2924.5,2924.0,0.03619972]
[1766773792916,0.96253251,2924.4,2924.0,0.002]
[1766773793635,0.9283,2924.0,2923.5,0.9947]
[1766773793819,0.03423251,2923.9,2923.5,0.9947]
[1766773794130,1.46891848,2924.5,2923.8,0.9947]
[1766773794420,0.9293,2924.5,2923.8,0.9947]
[1766773794922,0.9293,2924.5,2923.8,1.02890206]
[1766773797732,0.9293,2924.5,2923.8,0.9947]
[1766773798933,0.9293,2924.5,2923.8,1.03090206]
[1766773799930,0.9293,2924.5,2923.8,0.9967]
[1766773800131,1.11713,2924.5,2923.8,0.9967]
[1766773802236,1.11713,2924.5,2923.8,1.03090206]
[1766773802434,0.001,2924.5,2923.9,4.43165225]
[1766773802649,0.03523251,2924.8,2924.2,0.9947]
[1766773802820,0.9283,2925.1,2924.1,4.43165225]
[1766773802821,0.9283,2925.1,2924.4,0.9947]
[1766773803935,0.051,2925.2,2924.6,0.9947]
[1766773803936,0.001,2925.2,2924.6,0.9947]
[1766773804146,0.001,2925.2,2924.8,0.9947]
[1766773810068,0.9283,2925.1,2924.6,0.03419271]
[1766773810367,0.9283,2925.1,2924.5,0.03419387]
[1766773810534,0.9283,2925.1,2924.5,1.02889387]
[1766773811170,0.9283,2925.1,2924.6,0.44483851]
[1766773811465,0.9283,2925.1,2924.7,0.03419154]
[1766773812570,0.001,2925.2,2924.7,1.02889154]
[1766773814055,0.9756,2925.2,2924.7,1.02889154]
[1766773815558,0.001,2925.2,2924.7,1.02889154]
[1766773815889,0.001,2925.7,2924.8,0.9045]
[1766773816071,0.9746,2925.6,2924.9,0.46997376]
[1766773816245,0.9746,2925.6,2924.6,0.9045]
[1766773816440,0.9746,2925.6,2924.7,0.9045]
[1766773816645,0.9746,2925.5,2924.7,0.9045]
[1766773817769,0.9746,2925.5,2924.8,0.03419037]
[1766773818446,0.9746,2925.5,2924.7,0.9045]
[1766773818778,0.9746,2925.4,2924.7,0.9045]
[1766773820981,0.9746,2925.4,2924.5,4.31937654]
[1766773821179,0.9746,2925.4,2924.5,0.9]
[1766773821383,0.9746,2925.4,2924.5,5.22388305]
[1766773821880,0.9746,2925.4,2924.5,4.31938305]
[1766773822185,0.9746,2925.4,2924.6,0.4319383]
[1766773824990,0.9746,2925.4,2924.6,1.3364383]
[1766773825989,0.9746,2925.4,2924.7,0.93869154]
[1766773828098,0.9756,2925.4,2924.7,0.93869154]
[1766773831299,0.9756,2925.4,2924.8,0.9045]
[1766773834198,0.9756,2925.4,2924.7,0.03419154]
[1766773834399,0.9756,2925.4,2924.7,0.93869154]
[1766773835608,0.9756,2925.4,2924.7,4.3578443]
[1766773835797,0.9756,2925.4,2924.8,0.9045]
[1766773836100,0.001,2925.4,2924.8,0.9045]
[1766773836706,0.9756,2925.4,2924.8,0.9045]
[1766773841314,0.9756,2925.4,2924.6,0.002]
[1766773841714,0.9746,2925.2,2924.6,0.002]
[1766773843001,0.9746,2924.6,2923.8,0.9065]
[1766773843919,0.9746,2924.6,2923.8,4.32667496]
[1766773844119,0.9755,2924.8,2924.1,0.9776]
[1766773844432,0.9755,2924.8,2924.5,0.002]
[1766773844798,0.9755,2924.8,2924.2,0.9741]
[1766773845297,1.3840431,2924.7,2924.2,0.9741]
[1766773845517,0.9396,2924.7,2924.2,0.9741]
[1766773849247,0.9396,2925.2,2924.2,0.9741]
[1766773849398,5.2562183,2925.2,2924.4,0.9741]
[1766773849741,1.47022183,2925.1,2924.4,0.9741]
[1766773850132,0.9396,2925.1,2924.4,0.9741]
[1766773850444,0.9896,2925.3,2924.6,0.9741]
[1766773850622,3.46847699,2925.3,2924.6,0.9741]
[1766773850806,0.9396,2925.2,2924.6,0.9741]
[1766773864641,0.001,2925.4,2924.7,0.03419154]
[1766773864847,0.051,2925.6,2924.9,0.9741]
[1766773864848,0.001,2925.6,2924.9,0.9741]
[1766773865149,0.9406,2925.6,2924.9,0.9741]
[1766773865737,0.9406,2925.6,2925.0,1.00828803]
[1766773866074,0.001,2925.6,2925.0,1.00828803]
[1766773866229,0.001,2925.6,2925.1,0.9741]
[1766773866626,0.001,2925.7,2925.0,0.47691463]
[1766773866883,0.001,2926.0,2925.2,0.9741]
[1766773867173,0.001,2926.0,2925.1,0.898]
[1766773867174,0.001,2926.0,2925.4,0.9741]
[1766773867331,0.001,2926.0,2925.6,0.9741]
[1766773867734,0.9396,2926.3,2925.8,0.9741]
[1766773867943,4.42735822,2926.5,2925.8,0.9741]
[1766773868377,0.9406,2926.4,2925.8,0.9741]
[1766773868544,1.81919399,2926.4,2925.8,0.9741]
[1766773870084,4.42635822,2926.3,2925.8,0.9741]
[1766773873288,0.9396,2926.2,2925.5,1.00828219]
[1766773875984,4.42735822,2926.3,2925.5,1.00828219]
[1766773876147,4.42735822,2926.3,2925.7,0.9239]
[1766773881096,0.001,2926.3,2925.8,0.95807868]
[1766773881964,0.05,2926.7,2925.8,0.95807868]
[1766773881965,5.34525822,2927.1,2926.3,0.9239]
[1766773882198,5.34525822,2927.1,2926.0,0.03417634]
[1766773882199,0.9189,2926.6,2926.0,0.03417634]
[1766773882502,0.9189,2926.6,2925.8,0.9239]
[1766773882699,0.9189,2926.6,2925.9,1.10609]
[1766773883000,0.001,2926.3,2925.9,1.10609]
[1766773884280,0.001,2926.3,2926.0,0.03417634]
[1766773884799,0.001,2926.8,2926.0,0.95807634]
[1766773884970,0.001,2926.8,2926.2,0.9239]
[1766773885173,0.001,2926.8,2926.2,0.95807401]
[1766773889715,0.9199,2926.8,2926.2,0.95807401]
[1766773890211,0.9199,2926.8,2926.2,0.9239]
[1766773890623,0.9189,2926.6,2925.9,0.03417751]
[1766773890808,0.9189,2926.6,2925.9,0.43500933]
[1766773891424,5.34525822,2926.6,2925.9,1.35890933]
[1766773891714,5.34525822,2926.6,2926.0,0.9239]
[1766773892713,0.001,2926.8,2926.2,0.9239]
[1766773892935,4.42735822,2926.8,2926.2,0.9239]
[1766773893803,5.34625822,2926.8,2926.2,0.9239]
[1766773896436,0.9189,2927.3,2926.4,0.9239]
[1766773896583,0.9189,2927.3,2926.6,0.9239]
[1766773896916,0.001,2927.5,2926.8,0.9239]
[1766773897086,6.411,2927.5,2927.0,0.9239]
[1766773897711,4.411,2927.5,2927.0,0.9239]
[1766773897912,0.9189,2927.6,2927.1,0.0341635]
[1766773898093,0.9189,2927.6,2926.9,0.03416584]
[1766773898694,0.9189,2927.6,2927.0,0.43488395]
[1766773898895,0.9189,2927.6,2927.1,0.0341635]
[1766773902324,0.9189,2927.6,2926.9,0.03416584]
[1766773902493,0.9199,2927.6,2926.9,0.03416584]
[1766773904425,0.9948,2927.0,2926.1,3.41749154]
[1766773904733,0.9948,2926.6,2926.2,0.03417401]
[1766773905032,0.9948,2926.6,2925.4,4.42635822]
[1766773905033,1.02899835,2926.5,2926.1,0.03417518]
[1766773905235,1.02899835,2926.5,2925.4,5.32435822]
[1766773905236,1.02899835,2926.5,2925.8,3.41777804]
[1766773905530,1.02899835,2926.5,2925.9,0.37595531]
[1766773905708,0.9948,2926.5,2926.0,3.41761224]
[1766773905908,0.9948,2926.5,2926.1,0.03417518]
[1766773906534,0.03419835,2926.8,2926.1,0.03417518]
[1766773906535,0.897,2926.7,2926.1,0.03417518]
[1766773906731,1.02899835,2926.8,2926.2,0.34517874]
[1766773906896,1.8918,2926.8,2926.3,0.03417284]
[1766773907092,0.001,2927.6,2926.3,0.03417284]
[1766773907093,3.41617125,2927.3,2926.3,0.03417284]
[1766773907300,0.93119835,2927.2,2926.3,0.03417284]
[1766773907624,0.9948,2927.0,2926.3,0.03417284]
[1766773907825,1.02899835,2926.9,2926.3,0.03417284]
[1766773909543,1.02899835,2926.9,2926.3,0.4138576]
[1766773911534,0.9948,2926.9,2926.3,0.4138576]
[1766773911835,0.9948,2926.9,2926.3,0.03417284]
[1766773912008,0.9948,2926.9,2926.4,0.03417167]
[1766773912209,0.9948,2926.9,2926.2,0.03417401]
[1766773913657,0.93119835,2927.0,2926.2,3.45155973]
[1766773913658,0.897,2927.0,2926.2,3.45155973]
[1766773913957,0.897,2927.0,2926.3,0.34515597]
[1766773914123,0.03419835,2926.9,2926.4,0.03417167]
[1766773914516,0.03419835,2926.9,2926.2,0.03417401]
[1766773914740,0.9948,2927.0,2926.2,3.45157152]
[1766773915539,1.02899835,2927.0,2926.2,0.03417401]
[1766773915744,1.02899835,2927.0,2926.3,0.34516447]
[1766773916049,1.02899835,2927.0,2926.4,0.03417167]
[1766773917352,0.9948,2926.8,2926.0,0.002]
[1766773917541,1.02899835,2926.7,2926.0,0.002]
[1766773917738,1.02899835,2926.7,2926.1,0.37614911]
[1766773917942,1.02899835,2926.7,2926.1,0.37814911]
[1766773918448,0.9948,2926.6,2926.1,0.37814911]
[1766773918649,0.9948,2926.6,2926.2,0.03417401]
[1766773918853,0.9948,2926.6,2926.1,0.03617518]
[1766773919620,0.9948,2926.9,2926.1,0.03617518]
[1766773920761,1.02899835,2926.8,2926.1,0.03617518]
[1766773920925,1.02899835,2926.8,2926.2,0.34557726]
[1766773921125,1.02899835,2926.8,2926.3,0.03417284]
[1766773922242,1.02899835,2926.8,2926.1,0.03617518]
[1766773924354,0.9948,2926.8,2926.1,3.45367734]
[1766773925741,0.9948,2927.1,2926.1,3.45367734]
[1766773925949,1.02899835,2927.0,2926.2,1.12996567]
[1766773926133,0.9958,2926.9,2926.3,0.03417284]
[1766773926455,1.02899835,2926.8,2926.3,0.03417284]
[1766773930161,0.001,2926.9,2926.3,3.45145191]
[1766773930769,0.001,2926.9,2926.3,0.03417284]
[1766773931465,0.001,2926.9,2926.4,0.03417167]
[1766773931774,0.001,2926.9,2926.1,3.41947308]
[1766773931775,0.9958,2926.9,2926.2,0.03417401]
[1766773931936,0.9958,2926.9,2926.3,0.34536471]
[1766773932254,0.9958,2926.9,2926.4,0.03417167]
[1766773934748,0.001,2926.9,2926.4,0.03417167]
[1766773934965,0.001,2926.9,2926.3,3.76263003]
[1766773934966,0.001,2926.9,2926.5,0.03417051]
[1766773935174,0.001,2926.9,2926.4,0.03417167]
[1766773935376,0.9643,2926.9,2926.5,0.37987983]
[1766773935682,0.9643,2926.9,2926.6,0.03416934]
[1766773935844,0.9643,2926.9,2926.4,0.03417167]
[1766773941468,0.9633,2926.7,2926.3,0.34736471]
[1766773941777,0.9633,2926.7,2926.3,0.002]
[1766773946565,0.9633,2926.7,2926.1,0.03617518]
[1766773946566,0.9633,2926.5,2926.1,0.002]
[1766773946899,0.001,2926.9,2925.6,0.9]
[1766773946900,0.9633,2926.3,2925.6,0.9]
[1766773947064,0.9633,2926.3,2925.7,0.03417985]
[1766773948584,0.9633,2926.3,2925.7,3.45210464]
[1766773950266,0.9633,2926.3,2925.7,0.03417985]
[1766773951517,0.9633,2926.3,2925.7,3.45209908]
[1766773952306,0.9633,2926.3,2925.7,0.03417985]
[1766773952511,0.9633,2926.3,2925.8,0.38860589]
[1766773952815,0.9633,2926.3,2925.9,0.03417751]
[1766773956997,0.9633,2926.3,2925.9,0.03617751]
[1766773957910,0.9633,2926.7,2925.9,0.03617751]
[1766773958076,0.9633,2926.7,2926.0,0.38425929]
[1766773958278,0.9633,2926.7,2926.1,0.03417518]
[1766773962502,0.001,2926.9,2926.2,4.45894839]
[1766773963191,0.9643,2926.9,2926.2,4.45894839]
[1766773963500,0.9643,2926.9,2926.3,0.78764666]
[1766773963704,0.9643,2926.9,2926.4,0.03417167]
[1766773966532,0.9643,2926.9,2926.4,3.45130265]
[1766773967312,0.9643,2926.9,2926.4,0.03417167]
[1766773967876,0.001,2926.9,2926.4,0.03417167]
[1766773968090,0.001,2926.9,2926.5,0.42390473]
[1766773968303,0.001,2926.9,2926.6,0.03416934]
[1766773970004,0.001,2926.9,2926.7,0.03416817]
[1766773970226,0.001,2926.9,2926.4,0.03417167]
[1766773973712,0.001,2926.9,2926.4,3.45132428]
[1766773973912,0.001,2926.9,2926.5,0.42389709]
[1766773974119,0.001,2926.9,2926.6,0.03416934]
[1766773975917,0.9154,2926.9,2926.6,0.03416934]
[1766773976518,0.9154,2926.9,2926.3,0.78764666]
[1766773976717,0.9154,2926.9,2926.2,0.898]
[1766773978606,0.9154,2926.9,2926.3,0.03417284]
[1766773980136,0.001,2927.5,2926.3,0.03417284]
[1766773980137,0.9144,2927.3,2926.3,0.03417284]
[1766773981231,0.9144,2927.3,2926.3,3.4513635]
[1766773981439,0.9144,2927.3,2926.4,1.12935222]
[1766773981597,0.9144,2927.3,2926.5,0.03417051]
[1766773982024,0.001,2927.5,2926.8,4.42477438]
[1766773982196,0.9154,2927.6,2926.8,4.42477438]
[1766773982197,0.001,2927.6,2926.9,0.03416584]
[1766773982398,0.001,2927.6,2927.0,0.44589402]
[1766773982796,0.94959835,2928.0,2927.1,4.45893788]
[1766773982996,0.9154,2928.0,2927.1,4.45893788]
[1766773983294,0.9154,2928.0,2927.1,7.87517604]
[1766773983504,0.9154,2928.0,2927.2,1.173753]
[1766773983704,0.9154,2928.0,2927.3,0.03416117]
[1766773985720,0.9154,2928.0,2927.3,3.45027108]
[1766773986235,0.9154,2928.0,2927.3,0.03416117]
[1766773999354,0.9154,2928.0,2927.3,0.03616117]
[1766773999650,0.9154,2928.0,2927.4,0.46261449]
[1766773999817,0.9154,2928.0,2927.5,0.03415883]
[1766774000551,0.9154,2928.0,2927.3,0.002]
[1766774000552,0.9071,2927.8,2927.3,0.002]
[1766774000753,0.001,2928.0,2926.4,0.002]
[1766774000754,0.9071,2927.4,2926.4,0.002]
[1766774000951,0.9071,2927.2,2926.4,0.002]
[1766774001449,0.9071,2927.2,2926.4,0.03617167]
[1766774001945,0.9071,2927.2,2926.4,7.87368316]
[1766774002155,0.9071,2927.2,2926.4,4.42239875]
[1766774002448,0.9071,2927.2,2926.4,4.45657042]
[1766774003050,0.9071,2927.2,2926.5,0.78737873]
[1766774003348,0.9071,2927.2,2926.6,0.03416934]
[1766774004968,0.9071,2927.2,2926.4,4.42239875]
[1766774004969,5.31739875,2927.1,2926.4,0.002]
[1766774005826,0.9071,2926.8,2926.1,0.002]
[1766774006033,0.9071,2926.8,2926.1,0.01906208]
[1766774006237,0.9071,2926.8,2926.5,0.002]
[1766774012632,0.9071,2927.3,2926.5,0.002]
[1766774012960,0.9071,2927.3,2926.5,0.01904922]
[1766774013123,0.9071,2927.2,2926.5,0.01904922]
[1766774014344,0.9071,2927.2,2926.5,0.002]
[1766774014843,1.8041,2927.2,2926.5,0.002]
[1766774015160,0.9071,2927.1,2926.5,0.002]
[1766774022256,0.9081,2927.1,2926.5,0.01905272]
[1766774022434,0.9071,2927.0,2926.5,0.01905272]
[1766774025251,0.94980584,2927.0,2926.5,0.002]
[1766774025560,0.9993,2926.8,2926.1,0.002]
[1766774027840,0.9993,2926.6,2926.1,0.002]
[1766774030436,0.9993,2926.6,2926.1,0.01906558]
[1766774030636,0.9993,2926.6,2926.1,0.36313413]
[1766774037675,1.0003,2926.6,2926.1,0.36313413]
[1766774041055,0.001,2926.6,2926.1,3.78063046]
[1766774041251,0.001,2926.6,2926.1,0.36313413]
[1766774042448,0.001,2926.6,2926.1,3.78062788]
[1766774042649,0.001,2926.6,2926.2,0.37826279]
[1766774042860,0.001,2926.6,2926.3,0.01706208]
[1766774047680,0.9245,2926.8,2926.3,0.01706208]
[1766774051483,1.8215,2927.0,2926.3,0.01706208]
[1766774051679,0.897,2927.0,2926.3,0.01706208]
[1766774051981,0.9672073,2926.9,2926.3,0.01706208]
[1766774052383,0.9672073,2926.9,2926.1,0.01906208]
[1766774052586,0.9672073,2926.9,2926.2,0.343869]
[1766774052900,0.9672073,2926.9,2926.3,0.01705856]
[1766774053196,0.9245,2926.9,2926.3,0.01705856]
[1766774054585,0.9245,2926.9,2926.3,0.01905856]
[1766774054789,0.9255,2926.9,2926.3,0.01905856]
[1766774055313,0.9255,2926.9,2926.4,0.37802665]
[1766774055461,0.9255,2926.9,2926.5,0.01705506]
[1766774057268,0.9255,2926.9,2926.3,0.01905506]
[1766774061293,0.9255,2926.9,2926.3,0.002]
[1766774061996,0.9074,2926.7,2926.3,0.002]
[1766774062397,0.9074,2926.7,2926.1,0.002]
[1766774062693,0.9074,2926.6,2926.1,0.01906616]
[1766774068598,0.9074,2926.6,2926.1,3.43657292]
[1766774069081,0.001,2926.9,2926.1,3.43657292]
[1766774069283,0.9084,2926.9,2926.1,3.43657292]
[1766774069496,0.001,2926.6,2926.1,3.43657292]
[1766774069695,0.001,2926.6,2926.2,1.12802697]
[1766774069894,0.001,2926.6,2926.3,0.01706208]
[1766774071616,0.001,2926.9,2926.3,3.43433662]
[1766774071903,0.9084,2927.1,2926.3,11.27571586]
[1766774072102,0.9084,2927.1,2926.4,1.24037428]
[1766774072305,0.9084,2927.1,2926.5,0.01705274]
[1766774073392,0.9084,2927.1,2926.5,3.43408344]
[1766774073702,0.001,2927.1,2926.5,3.43408344]
[1766774074804,0.001,2927.1,2926.5,0.01705274]
[1766774075106,0.001,2927.1,2926.6,0.46745352]
[1766774075291,0.001,2927.1,2926.7,0.01704924]
[1766774076203,0.9074,2927.3,2926.7,0.01704924]
[1766774077393,0.9074,2927.3,2926.7,3.4338271]
[1766774077790,0.9074,2927.6,2926.7,3.4338271]
[1766774077993,0.001,2927.1,2926.8,0.39012806]
[1766774078207,0.001,2927.1,2926.9,0.01704572]
[1766774080688,0.9074,2927.4,2926.9,0.01704572]
[1766774084680,0.9084,2927.4,2926.9,0.01704572]
[1766774088223,0.9084,2927.4,2926.7,0.01704572]
[1766774091317,0.9084,2927.4,2926.7,0.40719826]
[1766774097434,0.9084,2927.4,2926.7,3.82398221]
[1766774098452,0.9084,2927.4,2926.7,0.40719826]
[1766774103649,0.9333,2927.8,2926.9,4.42409462]
[1766774103823,0.001,2928.0,2927.2,4.42409462]
[1766774104144,0.001,2928.0,2927.3,0.01702822]
[1766774104448,0.001,2928.0,2927.1,0.01702822]
[1766774105363,0.001,2928.0,2927.2,0.01703114]
[1766774105548,0.001,2928.0,2927.1,7.7297013]
[1766774105750,0.001,2928.0,2927.2,0.7917032]
[1766774105933,0.001,2928.0,2927.2,5.21579782]
[1766774106310,0.001,2928.1,2927.2,5.21579782]
[1766774108053,0.001,2928.1,2927.3,6.83223448]
[1766774108257,0.001,2928.1,2927.4,0.0170253]
[1766774108548,0.001,2928.1,2927.5,0.68492598]
[1766774108746,0.001,2928.0,2927.6,0.0170218]
[1766774109518,0.897,2928.5,2927.6,0.0170218]
[1766774109519,0.9333,2928.6,2927.8,4.42409462]
[1766774109718,0.9333,2928.6,2927.9,0.45942018]
[1766774109962,0.9333,2928.6,2927.6,4.31274231]
[1766774110620,0.9333,2928.6,2927.6,4.32975711]
[1766774110857,0.9333,2928.6,2927.6,7.74552429]
[1766774111153,0.9333,2928.6,2927.6,7.72850949]
[1766774111353,0.9333,2928.6,2927.7,0.01701422]
[1766774111540,0.9333,2928.6,2927.8,0.77455237]
[1766774111859,0.9333,2928.6,2927.6,0.897]
[1766774112160,0.9323,2928.3,2927.6,0.897]
[1766774113442,0.9323,2928.3,2927.6,4.31275725]
[1766774115445,0.9333,2928.3,2927.6,0.897]
[1766774116551,0.9333,2928.3,2927.6,4.31274939]
[1766774116752,0.9333,2928.3,2927.7,0.87327177]
[1766774117150,0.9333,2928.3,2927.6,0.897]
[1766774117452,0.9333,2928.3,2927.6,4.31274357]
[1766774118056,0.9333,2928.3,2927.7,0.01701772]
[1766774118753,0.9502,2928.5,2927.9,4.4199683]
[1766774119057,0.9502,2928.9,2928.3,4.4199683]
[1766774119254,0.9502,2928.9,2928.4,0.01699848]
[1766774120040,0.9502,2928.9,2928.2,0.01699848]
[1766774120442,0.99287813,2928.9,2927.8,3.41548919]
[1766774120663,0.99287813,2928.9,2927.9,3.41535415]
[1766774120959,0.99287813,2928.9,2928.0,0.34153542]
[1766774122071,0.99287813,2928.9,2928.1,0.01700373]
[1766774123481,0.99387813,2928.9,2928.1,0.01700373]
[1766774123971,7.87792627,2928.9,2928.1,0.01700373]
[1766774124127,0.9502,2928.8,2927.7,3.41559071]
[1766774124329,0.9502,2928.6,2927.8,0.43125907]
[1766774124961,0.9502,2928.6,2927.8,3.84673431]
[1766774125130,0.9502,2928.6,2927.9,0.01701072]
[1766774126433,0.9502,2928.6,2928.0,3.41526688]
[1766774126633,0.9502,2928.6,2928.1,0.36023499]
[1766774132568,0.9512,2928.6,2928.1,0.36023499]
[1766774133477,0.9512,2928.6,2928.1,3.77538867]
[1766774133679,0.9512,2928.6,2928.1,0.36023499]
[1766774136255,0.001,2928.6,2928.1,0.36023499]
[1766774138069,0.001,2928.6,2928.1,3.77541756]
[1766774139376,0.001,2928.6,2928.1,0.36023499]
[1766774141173,0.9512,2928.6,2928.1,0.36023499]
[1766774141580,0.9502,2928.4,2928.0,0.002]
[1766774144074,0.04368251,2928.6,2928.0,0.002]
[1766774144075,0.001,2928.6,2928.0,0.002]
[1766774144283,0.9881,2928.6,2928.0,0.01900781]
[1766774147481,0.04268396,2928.5,2928.0,0.01900781]
[1766774147683,0.9871,2928.4,2928.0,0.002]
[1766774148488,0.9881,2928.6,2928.0,0.34545346]
[1766774148685,0.9881,2928.6,2928.1,0.01700723]
[1766774154289,0.9775,2928.8,2928.1,7.852146]
[1766774154488,0.9775,2928.8,2928.1,7.83513877]
[1766774154690,0.9775,2928.8,2928.2,1.17658303]
[1766774159208,0.9775,2928.8,2928.2,4.59162378]
[1766774159570,0.001,2929.4,2928.5,4.4199683]
[1766774159770,0.9785,2929.4,2928.6,3.43158018]
[1766774160002,0.9785,2929.4,2928.7,0.78515485]
[1766774160179,0.9775,2929.2,2928.8,0.01698566]
[1766774160785,0.04267522,2929.1,2928.8,0.01698566]
[1766774160990,0.04267522,2929.1,2928.5,3.43169193]
[1766774161196,0.04267522,2929.1,2928.6,0.34316919]
[1766774161372,0.04267522,2929.1,2928.7,0.01699206]
[1766774164202,0.04267522,2929.1,2928.8,0.01698916]
[1766774164506,0.04267522,2929.1,2928.5,0.01698916]
[1766774164706,0.04267522,2929.1,2928.5,0.80216287]
[1766774165306,1.02017522,2929.1,2928.5,0.80216287]
[1766774166180,1.02017522,2929.1,2928.5,4.21687464]
[1766774166381,0.04267522,2929.1,2928.5,4.21687464]
[1766774166707,1.02017231,2929.3,2928.5,8.63684294]
[1766774166891,1.02017231,2929.3,2928.6,1.20515986]
[1766774167098,1.02017231,2929.3,2928.7,0.01698857]
[1766774168784,0.9775,2929.3,2928.7,7.85142853]
[1766774168982,0.9775,2929.3,2928.7,7.83443996]
[1766774169309,0.9775,2929.3,2928.8,0.01698682]
[1766774169507,0.9775,2929.3,2928.8,0.46366967]
[1766774169711,0.9775,2929.3,2928.9,0.01698508]
[1766774171424,0.9775,2929.3,2928.8,0.46366967]
[1766774172786,0.9785,2929.3,2928.8,0.46366967]
[1766774176822,0.96167376,2929.2,2928.5,0.002]
[1766774177117,0.96167376,2929.2,2928.5,0.01898974]
[1766774177939,0.96167376,2929.2,2928.5,3.43369031]
[1766774178423,0.96167376,2929.2,2928.5,0.01898974]
[1766774178625,0.96167376,2929.2,2928.5,0.70386039]
[1766774180631,0.96167376,2929.2,2928.5,4.11854661]
[1766774181818,0.96167376,2929.2,2928.5,0.70386039]
[1766774182118,0.96167376,2929.2,2928.5,0.002]
[1766774182323,0.96267376,2929.2,2928.5,0.002]
[1766774184326,4.41656036,2928.9,2928.0,0.002]
[1766774184621,4.41656036,2928.6,2927.4,0.897]
[1766774184831,0.04268396,2928.5,2927.4,0.897]
[1766774185020,0.04268396,2928.5,2927.5,3.43281744]
[1766774186052,0.96168396,2928.5,2927.5,3.43281744]
[1766774186354,1.45682443,2928.4,2927.5,3.43281744]
[1766774186516,0.04268688,2928.3,2927.5,3.43281744]
[1766774186720,0.919,2928.2,2927.5,3.43281744]
[1766774186925,0.04268979,2928.1,2927.5,3.43281744]
[1766774187180,0.919,2928.0,2927.5,3.43281744]
[1766774187320,0.919,2928.0,2927.5,4.20760768]
[1766774187526,0.919,2928.2,2927.5,4.20760768]
[1766774187763,0.919,2928.2,2927.5,7.62349153]
[1766774187991,0.96168542,2928.4,2927.5,4.1905888]
[1766774188262,0.96168542,2928.4,2927.5,4.20760768]
[1766774190074,1.14755396,2928.4,2927.5,4.20960768]
[1766774190225,1.14755396,2928.4,2927.5,0.79380912]
[1766774190424,0.919,2928.3,2927.5,0.002]
[1766774190633,0.919,2928.1,2927.5,0.002]
[1766774191163,0.22855396,2928.4,2927.5,0.002]
[1766774191164,0.919,2927.9,2927.5,0.002]
[1766774191333,0.919,2927.7,2927.3,0.002]
[1766774192587,0.919,2928.3,2927.3,0.3457382]
[1766774192743,0.919,2928.3,2927.4,0.01702296]
[1766774192945,0.919,2928.3,2927.3,0.002]
[1766774193972,0.04268834,2928.2,2927.3,0.002]
[1766774194181,0.919,2928.1,2927.3,0.002]
[1766774194357,0.96169125,2928.0,2927.3,0.002]
[1766774195289,0.96169125,2928.0,2927.3,0.01902822]
[1766774195509,0.919,2927.7,2927.1,0.002]
[1766774195783,0.919,2927.4,2926.6,0.002]
[1766774195978,0.96170146,2927.3,2926.6,0.002]
[1766774196700,0.919,2927.3,2926.6,0.01704748]
[1766774197202,0.04269708,2927.6,2926.6,0.01704748]
[1766774197390,0.96169708,2927.6,2926.7,0.44336078]
[1766774197691,0.96169708,2927.6,2926.8,0.01704164]
[1766774198481,0.96169708,2927.6,2926.8,7.85029125]
[1766774198482,0.919,2927.6,2926.8,7.85029125]